bitfinex/quotes_BTCUSD_20250303
["timestamp","ask_amount","ask_price","bid_price","bid_amount"]
[1741032593050,0.00011909,85926.0,85917.0,0.0812]
[1741032593242,0.00011909,85926.0,85895.0,0.1]
[1741032593448,0.00011909,85926.0,85892.0,0.083]
[1741032593449,0.00011909,85926.0,85925.0,0.232761]
[1741032593869,9e-08,85926.0,85925.0,0.615661]
[1741032594046,0.01447072,85970.0,85969.0,0.232641]
[1741032594249,0.01447072,85970.0,85942.0,0.1]
[1741032594558,0.00011929,85970.0,85969.0,0.232641]
[1741032594931,0.015549,85990.0,85972.0,0.465266]
[1741032595133,0.015549,85990.0,85989.0,0.232587]
[1741032595332,0.015549,85990.0,85972.0,0.1]
[1741032595508,0.015549,85990.0,85989.0,0.232587]
[1741032595719,0.015549,85990.0,85972.0,0.1]
[1741032595918,0.015549,85990.0,85989.0,0.20358699]
[1741032596119,0.015549,85990.0,85969.0,0.0793]
[1741032596322,0.015549,85990.0,85952.0,0.0763]
[1741032596505,0.015549,85990.0,85959.0,0.00011929]
[1741032596506,0.0003396,85972.0,85959.0,0.00011929]
[1741032596705,0.0003396,85972.0,85971.0,0.232636]
[1741032597108,0.0003396,85972.0,85971.0,0.332636]
[1741032597519,0.0003396,85972.0,85959.0,0.00011929]
[1741032597721,0.0003396,85972.0,85961.0,0.232662]
[1741032600629,0.015549,85990.0,85978.0,0.1]
[1741032600830,0.015549,85990.0,85971.0,0.0808]
[1741032601025,0.015549,86008.0,85985.0,0.07099999]
[1741032601196,0.015549,86008.0,85975.0,0.3]
[1741032601197,0.015549,86008.0,85975.0,0.07099999]
[1741032601396,0.015549,86008.0,85994.0,0.232571]
[1741032601673,0.015549,86025.0,86024.0,0.232493]
[1741032602214,0.015549,86025.0,86014.0,0.00879619]
[1741032602420,0.015549,86025.0,86010.0,0.0818]
[1741032602421,0.01594666,86025.0,86024.0,0.232493]
[1741032602758,0.00203355,86076.0,86015.0,0.18492]
[1741032602759,0.3,86076.0,86015.0,0.18492]
[1741032603062,0.00011933,86076.0,86024.0,0.1]
[1741032603245,0.00174791,86076.0,86025.0,0.00162649]
[1741032603440,0.23241,86055.0,86025.0,0.00162649]
[1741032603761,0.00174791,86076.0,86026.0,0.00162708]
[1741032603762,0.00011933,86076.0,86026.0,0.00162708]
[1741032603972,0.00011933,86076.0,86021.0,0.3]
[1741032604292,0.00011933,86076.0,86041.0,0.3]
[1741032604503,0.00011933,86076.0,86042.0,0.00162624]
[1741032604678,0.00011933,86076.0,86018.0,0.00162664]
[1741032604880,0.00011933,86076.0,86044.0,0.232438]
[1741032605090,0.00011933,86076.0,86045.0,0.0016266]
[1741032605380,0.00162858,86075.0,86025.0,0.00162656]
[1741032605604,0.00011933,86076.0,86025.0,0.00162656]
[1741032605735,0.0473,86072.0,86025.0,0.00162656]
[1741032605986,0.3,86070.0,86015.0,0.15754708]
[1741032606159,0.01822283,86065.0,86029.0,0.232477]
[1741032606359,0.01822283,86065.0,86031.0,0.232474]
[1741032606568,0.01822283,86065.0,86032.0,0.00081103]
[1741032606768,0.3,86056.0,86032.0,0.00081103]
[1741032606970,0.3,86053.0,86015.0,0.15754708]
[1741032607131,0.3,86051.0,86002.0,0.00081226]
[1741032607343,0.3,86051.0,85981.0,0.18484]
[1741032607344,0.3,86025.0,85988.0,0.00081257]
[1741032607546,0.0454,86048.0,85975.0,0.00081388]
[1741032607547,0.232555,86002.0,85975.0,0.00081388]
[1741032607767,0.00203491,86001.0,85973.0,0.7]
[1741032607986,0.0469,86009.0,85974.0,0.00081458]
[1741032608387,0.0469,86009.0,85965.0,0.00081417]
[1741032608586,0.3,85998.0,85965.0,0.00081417]
[1741032608849,0.3,85993.0,85965.0,0.00081417]
[1741032609072,0.01823455,86000.0,85946.0,0.00081486]
[1741032609298,0.1,86032.0,85945.0,0.10146343]
[1741032609299,0.07863518,86023.0,85973.0,0.00081526]
[1741032609491,0.00011918,86009.0,85973.0,0.00081526]
[1741032609704,0.00011918,86009.0,85993.0,0.232575]
[1741032609927,0.00011918,86009.0,86008.0,0.232536]
[1741032610731,0.00011918,86009.0,86007.0,0.232537]
[1741032610937,0.00011918,86009.0,86008.0,0.20434836]
[1741032611143,0.00011918,86009.0,86008.0,0.23334837]
[1741032611345,0.00011918,86009.0,86008.0,0.232536]
[1741032611545,0.00011918,86009.0,85970.0,0.41175278]
[1741032611789,0.00011918,86009.0,86008.0,0.232536]
[1741032612200,1.8e-07,86009.0,86008.0,0.532536]
[1741032612409,0.232376,86068.0,86004.0,0.1]
[1741032612606,0.11833222,86067.0,86016.0,0.232513]
[1741032612807,0.0001192,86068.0,86017.0,0.00081191]
[1741032613008,0.0001192,86068.0,86004.0,0.00081086]
[1741032613429,1.081439,86025.0,86005.0,0.3]
[1741032613604,1.081439,86025.0,86006.0,0.00081204]
[1741032614053,0.3,86024.0,86003.0,0.00081269]
[1741032614255,0.232498,86022.0,85985.0,0.00081369]
[1741032614458,0.3,86020.0,85966.0,0.00081416]
[1741032614665,0.532547,86004.0,86003.0,0.00039766]
[1741032614866,0.532547,86004.0,85954.0,0.18484]
[1741032614867,0.3,85974.0,85954.0,0.18484]
[1741032615096,0.3,85974.0,85955.0,0.01636552]
[1741032615296,0.3,85973.0,85955.0,0.01555]
[1741032615650,0.0825,86012.0,85968.0,0.232642]
[1741032615847,0.00203516,86003.0,85955.0,0.01555]
[1741032616093,0.00203516,86003.0,85955.0,0.00291463]
[1741032616094,0.3,86001.0,85955.0,0.00291463]
[1741032616229,0.3,86001.0,85969.0,0.232641]
[1741032616429,0.06523542,86004.0,85996.0,0.232566]
[1741032616630,0.00039709,86004.0,86003.0,0.23255]
[1741032617448,9e-08,86004.0,86003.0,0.31575]
[1741032617653,9e-08,86004.0,86003.0,0.0832]
[1741032617874,9e-08,86004.0,85988.0,0.0149515]
[1741032617875,9e-08,86004.0,86000.0,5e-05]
[1741032618097,9e-08,86004.0,86003.0,0.23255]
[1741032618675,9e-08,86004.0,86000.0,5e-05]
[1741032619078,9e-08,86004.0,86000.0,0.232606]
[1741032619278,9e-08,86004.0,86001.0,0.232555]
[1741032619489,9e-08,86004.0,86000.0,5e-05]
[1741032619709,9e-08,86004.0,86003.0,0.23255]
[1741032619916,9e-08,86004.0,86003.0,0.0001695]
[1741032620116,9e-08,86004.0,86003.0,0.2327195]
[1741032621067,9e-08,86004.0,86003.0,0.21071949]
[1741032621297,9e-08,86004.0,86003.0,0.51071949]
[1741032621633,0.81336493,86025.0,86003.0,0.3]
[1741032622233,0.81336493,86025.0,86024.0,0.232493]
[1741032622621,0.81336493,86025.0,86022.0,0.232498]
[1741032622821,0.81336493,86025.0,85987.0,0.01450158]
[1741032623046,0.81336493,86025.0,86000.0,0.00016918]
[1741032623468,0.3,86024.0,86000.0,0.00016918]
[1741032623673,0.3,86022.0,86000.0,0.00016918]
[1741032623991,0.3,86024.0,86000.0,0.00016918]
[1741032624542,0.81336493,86025.0,86000.0,0.00016918]
[1741032624543,0.81336493,86025.0,86011.0,0.232525]
[1741032624819,0.81336493,86025.0,86000.0,0.00016918]
[1741032625205,0.81336493,86025.0,86024.0,0.232493]
[1741032625402,0.81336493,86025.0,86000.0,0.00016918]
[1741032625403,0.8111615,86025.0,86000.0,0.00016918]
[1741032625604,0.8111615,86025.0,86017.0,0.23251]
[1741032626009,0.8111615,86025.0,86024.0,0.20349299]
[1741032626282,0.8111615,86025.0,86024.0,0.232493]
[1741032627087,1e-08,86025.0,86024.0,0.532493]
[1741032627547,0.0003398,86070.0,86059.0,0.232398]
[1741032627884,0.0003398,86070.0,86039.0,0.464901]
[1741032628088,0.0003398,86070.0,86008.0,0.0473]
[1741032628418,0.0003398,86070.0,86010.0,0.44441487]
[1741032628660,0.0003398,86070.0,86012.0,0.3]
[1741032629034,0.01566818,86060.0,86008.0,0.0473]
[1741032629244,0.00203372,86059.0,86001.0,0.0108319]
[1741032629468,0.3,86043.0,86001.0,0.0108319]
[1741032629675,0.3,86028.0,86001.0,0.0108319]
[1741032629801,0.0471,86026.0,86001.0,0.0108319]
[1741032630202,0.0471,86045.0,86001.0,0.2433859]
[1741032630406,0.279537,86045.0,86001.0,0.0108319]
[1741032630647,0.01822719,86041.0,86001.0,0.0108319]
[1741032630864,0.01822719,86041.0,86000.0,5e-05]
[1741032630865,0.1,86026.0,86000.0,5e-05]
[1741032631067,0.1,86026.0,85951.0,0.18476]
[1741032631068,0.278679,85992.0,85991.0,0.42099999]
[1741032631271,0.532677,85956.0,85950.0,5e-05]
[1741032631589,0.3,85956.0,85950.0,5e-05]
[1741032631817,0.92099233,85956.0,85950.0,5e-05]
[1741032631991,0.1,85955.0,85920.0,0.01555]
[1741032632194,0.00203683,85954.0,85920.0,0.01555]
[1741032632482,0.01824433,85956.0,85920.0,0.01555]
[1741032632686,0.0020364,85955.0,85920.0,0.01555]
[1741032632873,0.3,85954.0,85920.0,0.01555]
[1741032633092,0.3,85950.0,85937.0,0.01594709]
[1741032633286,0.532725,85938.0,85937.0,0.01594709]
[1741032633588,0.635605,85938.0,85937.0,0.01594709]
[1741032633764,0.3,85922.0,85920.0,0.01555]
[1741032633976,0.3,85922.0,85921.0,0.00028898]
[1741032634759,0.532769,85922.0,85921.0,0.00028898]
[1741032634959,0.532769,85922.0,85868.0,0.076]
[1741032634960,0.3,85921.0,85868.0,0.076]
[1741032635162,0.3,85921.0,85916.0,0.00028889]
[1741032635530,0.01555,85964.0,85916.0,0.00028889]
[1741032635730,0.01825067,85933.0,85916.0,0.00028889]
[1741032636032,0.1,85987.0,85916.0,0.00028889]
[1741032636033,0.00203618,85972.0,85916.0,0.07908889]
[1741032636288,0.232681,85955.0,85916.0,0.07908889]
[1741032636460,0.01824658,85959.0,85916.0,0.07908889]
[1741032636461,0.00203623,85954.0,85916.0,0.07908889]
[1741032636636,0.00203652,85958.0,85917.0,0.232782]
[1741032636833,0.00203652,85958.0,85916.0,0.07908889]
[1741032636834,0.00203652,85958.0,85929.0,0.232749]
[1741032637051,0.09987941,85940.0,85917.0,0.232782]
[1741032637252,0.09987941,85940.0,85916.0,0.07908889]
[1741032637431,0.09987941,85940.0,85915.0,0.0001697]
[1741032637781,0.09987941,85940.0,85915.0,0.00028879]
[1741032637782,0.30203633,85939.0,85915.0,0.00028879]
[1741032637986,0.3,85939.0,85915.0,0.00028879]
[1741032638157,0.3,85922.0,85915.0,0.00028879]
[1741032638539,0.232785,85916.0,85915.0,0.00028879]
[1741032638742,0.532785,85916.0,85915.0,0.00028879]
[1741032639145,0.3,85916.0,85915.0,0.00028879]
[1741032639676,0.532785,85916.0,85915.0,0.00028879]
[1741032639851,0.532807,85908.0,85902.0,0.01555]
[1741032640055,0.53282,85903.0,85902.0,0.01555]
[1741032640459,0.532864,85887.0,85867.0,0.01555]
[1741032640661,0.644171,85887.0,85886.0,0.00056714]
[1741032640882,0.483997,85887.0,85886.0,0.00056714]
[1741032641094,0.00230466,85902.0,85867.0,0.01555]
[1741032641095,0.3,85886.0,85867.0,0.01466713]
[1741032641265,0.00203819,85885.0,85867.0,0.01466713]
[1741032641783,0.05290005,85884.0,85867.0,0.01466713]
[1741032641989,0.00203788,85883.0,85867.0,0.01466713]
[1741032642306,0.3,85882.0,85867.0,0.01466713]
[1741032642478,0.03667768,85881.0,85867.0,0.01466713]
[1741032642809,0.0346395,85881.0,85867.0,0.01466713]
[1741032642959,0.0346395,85880.0,85867.0,0.01466713]
[1741032643162,0.3,85882.0,85867.0,0.01466713]
[1741032643369,0.03437272,85881.0,85867.0,0.01466713]
[1741032643551,0.00203806,85883.0,85867.0,0.01466713]
[1741032643773,0.0346395,85882.0,85867.0,0.01466713]
[1741032643981,0.1375101,85881.0,85867.0,0.01466713]
[1741032644183,0.232885,85879.0,85867.0,0.01466713]
[1741032644425,0.532915,85868.0,85867.0,0.01466713]
[1741032644651,0.532959,85852.0,85851.0,0.0001698]
[1741032644863,0.3,85852.0,85851.0,0.0001698]
[1741032645508,0.232866,85886.0,85851.0,0.0001698]
[1741032645723,0.00039682,85886.0,85858.0,0.232941]
[1741032645925,0.00039682,85886.0,85852.0,0.232959]
[1741032645926,0.00039682,85886.0,85851.0,0.0793698]
[1741032646134,0.00039682,85886.0,85850.0,5e-05]
[1741032646135,0.229998,85885.0,85850.0,5e-05]
[1741032646341,1.05450457,85884.0,85850.0,5e-05]
[1741032646552,0.91034,85883.0,85850.0,5e-05]
[1741032646749,0.3,85860.0,85850.0,5e-05]
[1741032647143,0.09940447,85887.0,85850.0,5e-05]
[1741032647347,0.00203821,85886.0,85850.0,5e-05]
[1741032647548,0.01826403,85874.0,85850.0,5e-05]
[1741032647748,0.00203826,85873.0,85850.0,5e-05]
[1741032647986,0.00039658,85873.0,85850.0,5e-05]
[1741032648171,0.00243481,85873.0,85850.0,5e-05]
[1741032648535,0.232922,85866.0,85850.0,5e-05]
[1741032648729,0.00243481,85873.0,85850.0,5e-05]
[1741032648730,0.00203858,85865.0,85850.0,5e-05]
[1741032649046,0.00039658,85873.0,85850.0,5e-05]
[1741032649047,0.00203864,85864.0,85850.0,5e-05]
[1741032649248,0.00203845,85872.0,85850.0,5e-05]
[1741032650491,0.232926,85864.0,85850.0,5e-05]
[1741032650694,0.30203866,85863.0,85850.0,5e-05]
[1741032650896,0.00039658,85873.0,85850.0,5e-05]
[1741032651483,0.3,85871.0,85850.0,5e-05]
[1741032651717,0.00039658,85873.0,85849.0,0.01555]
[1741032651718,0.532964,85850.0,85849.0,0.0056]
[1741032652205,0.3,85850.0,85849.0,0.0056]
[1741032652680,0.01826748,85850.0,85849.0,0.0056]
[1741032652906,0.00243476,85873.0,85849.0,0.0056]
[1741032653148,0.006,85863.0,85849.0,0.0056]
[1741032653383,0.006,85863.0,85850.0,0.0778]
[1741032653596,0.00039658,85873.0,85850.0,0.0778]
[1741032654409,0.00039658,85873.0,85850.0,0.0768]
[1741032654610,0.232907,85871.0,85850.0,0.0768]
[1741032654809,0.232918,85868.0,85849.0,0.0056]
[1741032655126,0.00203845,85867.0,85849.0,0.0056]
[1741032655318,0.00039658,85873.0,85849.0,0.0056]
[1741032655526,0.01826425,85869.0,85849.0,0.0056]
[1741032655677,0.00039658,85873.0,85849.0,0.0056]
[1741032655881,0.00139658,85873.0,85849.0,0.0056]
[1741032656099,0.00139658,85873.0,85845.0,0.02479999]
[1741032656349,0.00039658,85873.0,85865.0,0.232921]
[1741032656505,0.00039658,85873.0,85850.0,0.0001698]
[1741032656713,0.001,85869.0,85850.0,0.0001698]
[1741032657204,0.00039658,85873.0,85851.0,0.0754]
[1741032657406,0.00139658,85873.0,85851.0,0.0754]
[1741032658594,0.00039658,85873.0,85860.0,0.232935]
[1741032658829,0.00039658,85873.0,85851.0,0.0754]
[1741032659040,0.001,85869.0,85865.0,0.232923]
[1741032659294,0.001,85869.0,85851.0,0.0754]
[1741032659608,0.00039658,85873.0,85851.0,0.0754]
[1741032659752,0.00139658,85873.0,85860.0,0.002]
[1741032660151,0.00039658,85873.0,85851.0,0.0754]
[1741032660558,0.001,85869.0,85851.0,0.0774]
[1741032660881,0.2,85934.0,85851.0,0.0774]
[1741032660882,0.035045,85950.0,85873.0,0.3]
[1741032661084,0.01566805,85937.0,85873.0,0.4226]
[1741032661271,0.01566805,85937.0,85872.0,0.27792]
[1741032661272,0.01566805,85937.0,85888.0,0.0807]
[1741032661480,0.01566805,85937.0,85925.0,0.23276]
[1741032661660,0.01566805,85937.0,85895.0,0.3]
[1741032661896,0.01566805,85937.0,85890.0,0.0463]
[1741032662100,0.00203656,85936.0,85890.0,0.0453]
[1741032662275,0.01566805,85937.0,85890.0,0.0453]
[1741032662477,0.01566805,85937.0,85890.0,0.3453]
[1741032662700,0.01566805,85937.0,85927.0,0.232753]
[1741032663041,0.01566805,85937.0,85892.0,0.4]
[1741032663042,0.01666805,85937.0,85936.0,0.232731]
[1741032663392,0.01666805,85937.0,85936.0,0.608931]
[1741032663617,0.09940447,85950.0,85949.0,0.232696]
[1741032663817,0.00034,85960.0,85959.0,0.232669]
[1741032664224,0.00034,85960.0,85931.0,0.01398594]
[1741032664399,0.00034,85960.0,85954.0,0.232682]
[1741032664597,0.00034,85960.0,85939.0,0.3]
[1741032664803,0.00034,85960.0,85959.0,0.232669]
[1741032664999,0.00034,85960.0,85936.0,0.07625]
[1741032665185,0.00034,85960.0,85936.0,5e-05]
[1741032665380,0.232688,85952.0,85936.0,5e-05]
[1741032665646,0.00203631,85951.0,85936.0,5e-05]
[1741032665820,0.00237621,85960.0,85936.0,5e-05]
[1741032666161,0.00237621,85960.0,85936.0,0.007]
[1741032666162,0.3,85958.0,85936.0,0.007]
[1741032666365,0.3,85956.0,85936.0,0.007]
[1741032666615,0.3,85937.0,85908.0,0.232804]
[1741032666801,0.00034,85960.0,85890.0,0.0455]
[1741032667008,0.00034,85960.0,85898.0,0.3]
[1741032667209,0.00034,85960.0,85897.0,0.18519905]
[1741032667428,0.3,85958.0,85897.0,0.18519905]
[1741032667569,0.232681,85955.0,85897.0,0.18519905]
[1741032667771,0.00203652,85954.0,85897.0,0.18519905]
[1741032668090,0.3,85952.0,85897.0,0.18519905]
[1741032668298,0.1,85941.0,85897.0,0.18519905]
[1741032668508,0.3,85936.0,85897.0,0.00011905]
[1741032668710,0.232834,85898.0,85897.0,0.00011905]
[1741032668900,0.532834,85898.0,85897.0,0.00011905]
[1741032669113,1.169693,85898.0,85897.0,0.00011905]
[1741032669312,1.169693,85898.0,85897.0,0.00116905]
[1741032669313,0.3,85898.0,85897.0,0.00116905]
[1741032669661,0.0479,85910.0,85897.0,0.00116905]
[1741032669992,0.532834,85898.0,85897.0,0.00016905]
[1741032670248,0.532834,85898.0,85897.0,0.00116905]
[1741032670450,0.672965,85898.0,85897.0,0.00116905]
[1741032670653,0.3,85898.0,85897.0,0.00116905]
[1741032670859,0.06615946,85910.0,85897.0,0.00116905]
[1741032670860,0.01825946,85910.0,85897.0,0.00116905]
[1741032670986,0.00203753,85909.0,85867.0,0.01271905]
[1741032671206,0.00203753,85909.0,85867.0,0.01283828]
[1741032671760,0.00203769,85921.0,85867.0,0.01283828]
[1741032671889,0.3,85898.0,85867.0,0.01283828]
[1741032672092,0.232915,85868.0,85867.0,0.01283828]
[1741032672310,0.532915,85868.0,85867.0,0.01283828]
[1741032672509,0.701941,85868.0,85867.0,0.01283828]
[1741032673111,0.3,85868.0,85867.0,0.01283828]
[1741032673293,0.43341,85868.0,85867.0,0.01283828]
[1741032673514,0.232934,85861.0,85860.0,5e-05]
[1741032673710,0.00011907,85868.0,85860.0,5e-05]
[1741032674234,0.00215762,85868.0,85860.0,5e-05]
[1741032674435,0.232934,85861.0,85860.0,5e-05]
[1741032674637,0.549377,85861.0,85860.0,5e-05]
[1741032674841,0.23303607,85868.0,85860.0,5e-05]
[1741032675057,0.232931,85863.0,85860.0,5e-05]
[1741032675377,0.00203853,85862.0,85860.0,5e-05]
[1741032675552,0.23507256,85868.0,85860.0,5e-05]
[1741032675718,0.00203849,85867.0,85860.0,5e-05]
[1741032675924,0.00203849,85867.0,85849.0,0.00376979]
[1741032676125,0.00011907,85868.0,85860.0,0.002]
[1741032676541,0.232918,85867.0,85860.0,0.002]
[1741032676747,0.232918,85867.0,85849.0,0.00376979]
[1741032676748,0.00203853,85866.0,85849.0,0.00376979]
[1741032676953,0.00011907,85868.0,85849.0,0.00376979]
[1741032676954,0.232934,85861.0,85860.0,0.003]
[1741032677187,0.3,85861.0,85860.0,0.003]
[1741032677749,0.532934,85861.0,85860.0,0.003]
[1741032678148,2.644839,85861.0,85860.0,0.003]
[1741032678374,2.326368,85861.0,85860.0,0.003]
[1741032678576,2.326368,85861.0,85849.0,0.00376979]
[1741032678577,0.532964,85850.0,85849.0,0.00376979]
[1741032678991,1.039794,85850.0,85849.0,0.00376979]
[1741032679891,0.233002,85836.0,85832.0,0.01555]
[1741032680089,0.23304,85822.0,85804.0,0.00017]
[1741032680436,0.8755835,85822.0,85804.0,0.00017]
[1741032680717,0.1628415,85822.0,85804.0,0.00017]
[1741032680859,0.00203956,85822.0,85804.0,0.00017]
[1741032681060,0.00203954,85836.0,85796.0,0.01552069]
[1741032681258,0.10731454,85836.0,85796.0,0.01591727]
[1741032681469,0.102525,85835.0,85796.0,0.01591727]
[1741032681749,0.233028,85827.0,85796.0,0.01591727]
[1741032681942,0.00203937,85826.0,85796.0,0.01591727]
[1741032682145,0.00203917,85848.0,85796.0,0.01591727]
[1741032682383,0.02190174,85847.0,85796.0,0.01591727]
[1741032682686,0.1,85833.0,85796.0,0.01591727]
[1741032682824,4.12316595,85832.0,85796.0,0.01591727]
[1741032683029,0.3,85805.0,85796.0,0.01591727]
[1741032683251,0.533108,85797.0,85796.0,0.01591727]
[1741032683592,0.3,85797.0,85796.0,0.01591727]
[1741032683776,0.23304,85823.0,85796.0,0.01596727]
[1741032683985,0.1,85846.0,85796.0,0.01596727]
[1741032683986,0.06259039,85832.0,85796.0,0.01596727]
[1741032684190,0.00203927,85831.0,85796.0,0.01596727]
[1741032684540,0.233039,85823.0,85796.0,0.01596727]
[1741032684739,0.06259039,85832.0,85796.0,0.01596727]
[1741032685168,0.005,85832.0,85797.0,0.0454]
[1741032685344,0.00203903,85831.0,85797.0,0.0454]
[1741032685562,0.005,85832.0,85797.0,0.0454]
[1741032685765,0.005,85832.0,85818.0,0.23305]
[1741032686097,0.10049322,85839.0,85813.0,0.233062]
[1741032686297,0.10049322,85839.0,85797.0,0.0454]
[1741032686634,0.001,85832.0,85798.0,0.3]
[1741032686839,0.001,85832.0,85831.0,0.233016]
[1741032687466,0.1,85921.0,85831.0,0.233016]
[1741032687467,0.0020383,85895.0,85833.0,0.46602]
[1741032687670,0.00203768,85918.0,85864.0,0.3]
[1741032687869,0.00203768,85918.0,85865.0,0.03292978]
[1741032688070,0.3,85926.0,85884.0,0.23287]
[1741032688272,0.00011914,85895.0,85865.0,0.03192978]
[1741032688539,0.00011914,85895.0,85894.0,0.232845]
[1741032688900,0.00011914,85895.0,85875.0,0.0808]
[1741032689114,0.00011914,85895.0,85872.0,0.113702]
[1741032689312,0.00011914,85895.0,85849.0,0.00872293]
[1741032689537,0.00011914,85895.0,85848.0,0.18516]
[1741032689741,0.232845,85894.0,85848.0,0.18516]
[1741032689948,0.3,85892.0,85848.0,0.18516]
[1741032690168,0.002038,85891.0,85848.0,0.18516]
[1741032690318,0.00011914,85895.0,85848.0,0.18516]
[1741032690515,0.00011914,85895.0,85853.0,0.232954]
[1741032690719,0.00215682,85895.0,85849.0,0.3]
[1741032690916,0.00011914,85895.0,85856.0,0.1]
[1741032691144,0.00111914,85895.0,85850.0,0.1]
[1741032691359,0.00111914,85895.0,85848.0,0.18516]
[1741032691572,0.00011914,85895.0,85851.0,0.1]
[1741032691724,0.00011914,85895.0,85852.0,0.3]
[1741032691927,0.00145914,85895.0,85849.0,0.00017]
[1741032692228,0.3,85884.0,85849.0,0.00017]
[1741032692428,0.07585914,85895.0,85850.0,5e-05]
[1741032692630,0.07585914,85895.0,85876.0,0.232891]
[1741032692631,0.00145914,85895.0,85876.0,0.232891]
[1741032692986,0.00145914,85895.0,85850.0,5e-05]
[1741032693194,0.00145914,85895.0,85861.0,0.232932]
[1741032693337,0.00145914,85895.0,85850.0,5e-05]
[1741032693973,0.00145914,85895.0,85850.0,0.30005]
[1741032694297,0.00045914,85895.0,85891.0,0.232851]
[1741032694627,0.00045914,85895.0,85894.0,0.232845]
[1741032694628,0.00145914,85895.0,85894.0,0.232845]
[1741032694956,0.00045914,85895.0,85894.0,0.532845]
[1741032695158,0.00145914,85895.0,85888.0,0.232861]
[1741032695360,0.00145914,85895.0,85877.0,0.015549]
[1741032695361,0.01559744,85895.0,85877.0,0.015549]
[1741032695560,0.01459744,85895.0,85877.0,0.015549]
[1741032695789,0.01459744,85895.0,85850.0,5e-05]
[1741032695985,0.01459744,85895.0,85880.0,0.232883]
[1741032696194,0.01459744,85895.0,85874.0,0.232898]
[1741032696367,0.00045914,85895.0,85892.0,0.232849]
[1741032696661,0.0160357,85895.0,85880.0,0.232882]
[1741032696865,0.00145914,85895.0,85894.0,0.232845]
[1741032697066,0.00145914,85895.0,85871.0,0.1]
[1741032697219,0.00145914,85895.0,85894.0,0.232845]
[1741032697430,0.00145914,85895.0,85875.0,0.01413687]
[1741032697633,0.00145914,85895.0,85894.0,0.232845]
[1741032697970,0.015549,85902.0,85901.0,0.232826]
[1741032698332,0.015549,85902.0,85901.0,0.531826]
[1741032699285,0.015549,85920.0,85919.0,0.232777]
[1741032699492,0.015549,85920.0,85904.0,0.1]
[1741032699660,0.015549,85920.0,85919.0,0.232777]
[1741032699864,0.015549,85920.0,85919.0,0.532777]
[1741032700045,0.015889,85937.0,85923.0,0.1]
[1741032700253,0.015889,85937.0,85919.0,0.05951602]
[1741032700254,0.01600829,85937.0,85919.0,0.05951602]
[1741032700654,0.01600829,85937.0,85912.0,0.18508]
[1741032700854,0.01600829,85937.0,85913.0,0.3]
[1741032701079,0.01600829,85937.0,85914.0,0.23279]
[1741032701281,0.001,85920.0,85919.0,0.001]
[1741032701455,0.001,85920.0,85919.0,0.533777]
[1741032701689,0.01600829,85937.0,85936.0,0.232731]
[1741032702092,0.01700829,85937.0,85936.0,0.532731]
[1741032702536,0.01600829,85937.0,85936.0,0.532731]
[1741032702674,0.02981749,85972.0,85936.0,0.532731]
[1741032702675,0.015549,85972.0,85949.0,0.3]
[1741032702882,0.015549,86025.0,85949.0,0.3]
[1741032702883,0.015549,86025.0,85980.0,0.232612]
[1741032703108,0.00073773,85981.0,85980.0,0.231612]
[1741032703288,0.00073773,85981.0,85980.0,0.00892441]
[1741032703505,0.00073773,85981.0,85973.0,0.015549]
[1741032703886,0.00073773,85981.0,85964.0,0.232653]
[1741032704166,0.00073773,85981.0,85965.0,0.232652]
[1741032704350,0.00073773,85981.0,85955.0,0.31391689]
[1741032704550,0.00073773,85981.0,85974.0,0.232627]
[1741032704798,0.00073773,85981.0,85980.0,0.000625]
[1741032705188,0.01511529,85981.0,85980.0,0.000625]
[1741032705404,0.00073773,85981.0,85949.0,0.019549]
[1741032705923,0.39258271,85980.0,85906.0,0.015549]
[1741032706054,0.0763,85980.0,85902.0,0.17217399]
[1741032706257,0.07833615,85980.0,85902.0,0.17217399]
[1741032706461,0.204385,85979.0,85902.0,0.17217399]
[1741032706675,0.0497,85951.0,85902.0,0.17217399]
[1741032707048,0.00203615,85966.0,85903.0,0.3]
[1741032707248,0.0459,85971.0,85903.0,0.3]
[1741032707666,0.0459,85971.0,85936.0,0.23273]
[1741032707866,0.0459,85971.0,85912.0,0.1]
[1741032708082,0.0763,85980.0,85949.0,0.232694]
[1741032708282,0.0762,85980.0,85924.0,0.3]
[1741032708546,0.00039773,85971.0,85920.0,0.1]
[1741032708673,0.00039773,85971.0,85955.0,0.232677]
[1741032708878,0.00039773,85971.0,85927.0,0.045]
[1741032709076,0.00039773,85971.0,85929.0,0.3]
[1741032709337,0.00039773,85971.0,85939.0,0.23272]
[1741032709536,0.00039773,85971.0,85953.0,0.232682]
[1741032709720,0.00039773,85971.0,85927.0,0.05365979]
[1741032710060,0.00039773,85971.0,85944.0,0.232709]
[1741032710233,0.00039773,85971.0,85927.0,0.05365979]
[1741032710459,0.00039773,85971.0,85957.0,0.232672]
[1741032710576,0.00039773,85971.0,85964.0,0.232653]
[1741032710777,0.00039773,85971.0,85934.0,0.1]
[1741032711079,0.00139773,85971.0,85943.0,0.014086]
[1741032711500,0.00039773,85971.0,85970.0,0.232639]
[1741032711754,0.00139773,85971.0,85970.0,0.227639]
[1741032711942,0.00139773,85971.0,85970.0,0.527639]
[1741032712341,0.00039773,85971.0,85970.0,0.527639]
[1741032712567,0.00039773,85971.0,85965.0,0.00854277]
[1741032712757,0.01535363,85971.0,85943.0,0.0149572]
[1741032712932,0.00139773,85971.0,85943.0,0.0149572]
[1741032713711,0.00139773,85971.0,85943.0,0.006]
[1741032714120,0.00039773,85971.0,85931.0,0.18496]
[1741032714332,0.00139773,85971.0,85970.0,0.005]
[1741032714601,0.00139773,85971.0,85931.0,0.18496]
[1741032714602,0.01033478,85971.0,85931.0,0.18496]
[1741032714741,0.00203606,85970.0,85931.0,0.18496]
[1741032715146,0.0159465,85971.0,85946.0,0.232704]
[1741032715349,0.0159465,85971.0,85943.0,0.006]
[1741032715350,0.00139773,85971.0,85943.0,0.006]
[1741032715745,0.00139773,85971.0,85970.0,0.232639]
[1741032715953,7.3e-07,85971.0,85970.0,0.512639]